fUST/lending_fUST_20250930
["ID","MTS","AMOUNT","RATE_DAILY","PERIOD"]
[388446924,1759171983786,-2892.62586967,0.0002289,2]
[388446925,1759171995417,-163.90713401,0.000229,2]
[388446926,1759171997558,-300.0,0.000229,2]
[388446928,1759172066857,204.71806207,0.000228,2]
[388446929,1759172084096,901.06698381,0.0002289,2]
[388446930,1759172163865,223.5165408,0.00021989,2]
[388446931,1759172164378,-36.09286599,0.000229,2]
[388446932,1759172164408,-300.0,0.00022979,2]
[388446933,1759172164440,-1703.33,0.0002298,3]
[388446934,1759172164468,-567.78,0.0002298,3]
[388446935,1759172164497,-283.89,0.0002298,3]
[388446936,1759172164524,-851.69,0.0002298,3]
[388446937,1759172164549,-239.0,0.00022987,2]
[388446938,1759172164575,-300.0,0.00022987,2]
[388446939,1759172164602,-300.0,0.00022987,2]
[388446940,1759172164906,-1200.0,0.00022987,2]
[388446941,1759172164933,-483.91,0.00022988,2]
[388446942,1759172164961,-480.0,0.00022988,2]
[388446943,1759172164990,-480.0,0.00022988,2]
[388446944,1759172165020,-272.10916378,0.00022988,2]
[388446945,1759172165047,-209.69054077,0.00022988,2]
[388446946,1759172165077,-500.0,0.00022988,2]
[388446947,1759172165105,-436.7553342,0.00022988,2]
[388446948,1759172165133,-500.0,0.00022988,2]
[388446949,1759172165161,-203.8887403,0.00022988,2]
[388446950,1759172165189,-182.1033825,0.00022988,2]
[388446951,1759172165244,-480.0,0.00022988,2]
[388446952,1759172165273,-500.0,0.00022988,2]
[388446953,1759172165302,-500.0,0.00022988,2]
[388446954,1759172165524,-419.32226272,0.00022988,2]
[388446955,1759172165553,-1200.0,0.00022989,2]
[388446956,1759172165581,-480.0,0.00022989,2]
[388446957,1759172165611,-480.0,0.00022989,2]
[388446958,1759172165639,-484.01351364,0.00022989,2]
[388446959,1759172165666,-433.33844728,0.00022989,2]
[388446960,1759172165769,-46.66155272,0.00022989,2]
[388446961,1759172165798,-480.0,0.00022989,2]
[388446962,1759172165826,-480.0,0.00022989,2]
[388446963,1759172165854,-480.0,0.00022989,2]
[388446964,1759172166886,-9040.01,0.0002299,2]
[388446965,1759172166958,-10000.01,0.0002299,2]
[388446966,1759172166997,-10000.01,0.0002299,2]
[388446967,1759172167018,-10000.01,0.0002299,2]
[388446968,1759172167043,-10000.01,0.0002299,2]
[388446969,1759172167173,-10000.01,0.0002299,2]
[388446970,1759172174190,-10000.01,0.0002299,2]
[388446971,1759172174325,-10000.01,0.0002299,2]
[388446975,1759172194205,-3225.00496384,0.00022758,2]
[388446976,1759172194238,-480.0,0.00022988,2]
[388446977,1759172194291,-2590.00007232,0.0002299,2]
[388446978,1759172194328,-10000.01,0.0002299,2]
[388446979,1759172194477,-1630.10007232,0.0002299,2]
[388446980,1759172194501,-6739.80985536,0.0002299,2]
[388446981,1759172195874,480.0,0.00022988,2]
[388446982,1759172198807,623.18,0.00022988,2]
[388446983,1759172201031,248.90214496,0.00022942,2]
[388446984,1759172204415,-160.0,0.00023,2]
[388446985,1759172204446,-612.12167428,0.0002302,2]
[388446986,1759172204475,-203.06488469,0.00023031,2]
[388446987,1759172204504,-500.0,0.00023031,2]
[388446988,1759172204533,-505.72873394,0.00023031,2]
[388446989,1759172204969,480.0,0.00022988,2]
[388446990,1759172208191,908.38,0.00022988,2]
[388446991,1759172210818,532.29,0.00022988,2]
[388446992,1759172213300,481.38661276,0.00022988,2]
[388446993,1759172217742,2055.51,0.00022988,2]
[388446994,1759172222779,300.0,0.00023031,2]
[388446995,1759172230585,582.34207422,0.00022988,2]
[388446996,1759172231214,-376.38122859,0.00023032,2]
[388446997,1759172232384,480.0,0.00022988,2]
[388446998,1759172234965,-385.41,0.00023032,2]
[388446999,1759172235972,218.2707272,0.00022988,2]
[388447000,1759172236004,3142.1492728,0.00022988,2]
[388447001,1759172236122,480.0,0.00022988,2]
[388447002,1759172239783,-1186.12466475,0.00023032,2]
[388447003,1759172239812,1200.0,0.00023031,2]
[388447004,1759172243028,-152.0,0.00023032,2]
[388447005,1759172244250,5177.8607272,0.00022942,2]
[388447006,1759172244275,7206.16594184,0.00022942,2]
[388447007,1759172244876,480.0,0.00022988,2]
[388447008,1759172245023,-203.56282027,0.00023032,2]
[388447009,1759172247628,-335.54356992,0.00023032,2]
[388447010,1759172250124,480.0,0.00022988,2]
[388447011,1759172253367,480.0,0.00022988,2]
[388447012,1759172257104,335.54356992,0.0002302,2]
[388447013,1759172258335,480.0,0.00023031,2]
[388447014,1759172265691,538.30048824,0.0002285,2]
[388447015,1759172265712,59.08113031,0.0002285,2]
[388447016,1759172269543,480.0,0.00022988,2]
[388447017,1759172269696,480.0,0.00022988,2]
[388447018,1759172270933,480.0,0.00023031,2]
[388447019,1759172271563,3674.63,0.00022988,2]
[388447020,1759172273729,2538.79422745,0.00023032,2]
[388447021,1759172276900,2260.8510162,0.00022942,2]
[388447022,1759172276981,26.65362604,0.00022988,2]
[388447023,1759172277006,1316.69637396,0.00022988,2]
[388447024,1759172277120,597.3,0.0002285,2]
[388447025,1759172279290,480.0,0.00023031,2]
[388447026,1759172282147,5000.0,0.00023032,2]
[388447027,1759172282183,883.86,0.00022988,2]
[388447028,1759172282209,300.0,0.00023031,2]
[388447029,1759172287168,480.0,0.00022988,2]
[388447030,1759172289910,480.0,0.00023031,2]
[388447031,1759172290249,462.15362604,0.0002285,2]
[388447032,1759172290271,135.14637396,0.0002285,2]
[388447033,1759172291014,480.0,0.00022988,2]
[388447034,1759172293775,480.0,0.00023031,2]
[388447035,1759172297114,480.0,0.00022988,2]
[388447036,1759172298175,3942.23148475,0.00023032,2]
[388447037,1759172301810,597.3,0.0002285,2]
[388447038,1759172305999,2338.61981071,0.00023032,2]
[388447039,1759172306806,480.0,0.00022988,2]
[388447040,1759172308757,480.0,0.00023031,2]
[388447041,1759172311884,216.36043294,0.00022988,2]
[388447042,1759172313020,370.35189764,0.0002285,2]
[388447043,1759172313047,226.94810236,0.0002285,2]
[388447044,1759172313322,480.0,0.00023031,2]
[388447045,1759172316072,2554.98,0.00022988,2]
[388447046,1759172320151,500.0,0.00023031,2]
[388447047,1759172320430,524.06509231,0.00023031,2]
[388447048,1759172322367,3548.68229411,0.00023032,2]
[388447049,1759172329331,480.0,0.00022988,2]
[388447050,1759172329987,597.3,0.0002285,2]
[388447052,1759172335715,-584.45643008,0.00023032,2]
[388447053,1759172337981,597.3,0.0002285,2]
[388447054,1759172339942,490.73451122,0.0002285,2]
[388447055,1759172339964,106.56548878,0.0002285,2]
[388447056,1759172339990,-207.27394768,0.00023032,2]
[388447057,1759172340392,868.35,0.00022988,2]
[388447058,1759172341479,1039.58,0.00022988,2]
[388447059,1759172342221,300.0,0.00023031,2]
[388447060,1759172344523,3192.10447673,0.00023032,2]
[388447061,1759172345096,480.0,0.00023031,2]
[388447062,1759172348723,597.3,0.0002285,2]
[388447063,1759172352094,480.0,0.00022988,2]
[388447064,1759172354566,480.0,0.00022988,2]
[388447065,1759172355035,480.0,0.00023031,2]
[388447066,1759172355248,480.0,0.00023031,2]
[388447067,1759172356478,597.3,0.0002285,2]
[388447068,1759172360592,480.0,0.00022988,2]
[388447069,1759172363919,-156.38364652,0.00023032,2]
[388447070,1759172367313,418.81003449,0.00023032,2]
[388447071,1759172367338,490.85996551,0.00023032,2]
[388447072,1759172373268,986.3,0.00022988,2]
[388447073,1759172373345,788.43361079,0.00022942,2]
[388447074,1759172381328,480.0,0.00022988,2]
[388447075,1759172382127,1082.08,0.00022988,2]
[388447076,1759172383379,480.4966852,0.00022988,2]
[388447077,1759172385402,480.0,0.00022988,2]
[388447078,1759172387593,480.0,0.00022988,2]
[388447079,1759172392253,480.0,0.00022988,2]
[388447080,1759172397594,618.95,0.00022988,2]
[388447081,1759172398278,494.74,0.00022988,2]
[388447082,1759172402431,300.0,0.00023031,2]
[388447083,1759172402566,1200.0,0.00023031,2]
[388447084,1759172408361,151.75627395,0.00023032,2]
[388447085,1759172409713,1330.98,0.00022988,2]
[388447086,1759172410473,155.41346455,0.00022988,2]
[388447087,1759172410497,1690.21653545,0.00022988,2]
[388447088,1759172413926,5000.0,0.00022229,2]
[388447089,1759172415665,480.0,0.00023031,2]
[388447090,1759172416715,480.0,0.00023031,2]
[388447091,1759172418653,151.0,0.00023032,2]
[388447092,1759172419795,480.0,0.00022988,2]
[388447093,1759172420657,480.0,0.00022988,2]
[388447094,1759172424403,660.24,0.00022988,2]
[388447095,1759172424471,578.55346455,0.00023031,2]
[388447096,1759172424494,264.60653545,0.00023031,2]
[388447097,1759172425160,480.0,0.00023031,2]
[388447098,1759172425982,480.0,0.00023031,2]
[388447099,1759172428361,1961.72,0.00022988,2]
[388447100,1759172434214,597.3,0.00022985,2]
[388447101,1759172434948,480.0,0.00023031,2]
[388447102,1759172435724,480.0,0.00022988,2]
[388447103,1759172436667,510.29,0.00022988,2]
[388447104,1759172438600,480.0,0.00023031,2]
[388447105,1759172441502,480.0,0.00023031,2]
[388447106,1759172442740,597.3,0.00022985,2]
[388447107,1759172446374,296.56919635,0.00022988,2]
[388447108,1759172448370,500.0,0.00022988,2]
[388447109,1759172448623,500.0,0.00022988,2]
[388447110,1759172448655,597.68,0.00023031,2]
[388447111,1759172448877,500.0,0.00022989,2]
[388447112,1759172449173,500.0,0.00022989,2]
[388447113,1759172449266,294.5442682,0.00023031,2]
[388447114,1759172449290,185.4557318,0.00023031,2]
[388447115,1759172449322,480.0,0.00023031,2]
[388447116,1759172449463,500.0,0.00022989,2]
[388447117,1759172449710,480.0,0.00022989,2]
[388447118,1759172450072,480.0,0.00023031,2]
[388447119,1759172450464,480.0,0.00023031,2]
[388447120,1759172450805,597.3,0.00022985,2]
[388447121,1759172459809,-761.65,0.00022988,2]
[388447122,1759172459837,-510.11,0.00023031,2]
[388447123,1759172460278,-6963.9117098,0.00023032,2]
[388447124,1759172460406,-10000.01,0.00023032,2]
[388447125,1759172460583,-10000.01,0.00023032,2]
[388447126,1759172460738,-10000.01,0.00023032,2]
[388447127,1759172460862,-10000.01,0.00023032,2]
[388447128,1759172460991,-10000.01,0.00023032,2]
[388447129,1759172461134,-10000.01,0.00023032,2]
[388447130,1759172469821,-513.7060253,0.00022917,10]
[388447131,1759172469852,-480.0,0.00022988,2]
[388447132,1759172469882,-300.0,0.00023031,2]
[388447133,1759172469909,-535.8,0.00023031,2]
[388447134,1759172469937,-480.0,0.00023031,2]
[388447135,1759172469964,-870.54,0.00023031,2]
[388447136,1759172470092,-3639.9179494,0.00023032,2]
[388447137,1759172470111,-480.0,0.00022988,2]
[388447138,1759172470127,-9520.01,0.00023032,2]
[388447139,1759172470175,-10000.01,0.00023032,2]
[388447140,1759172479857,-480.0,0.00023031,2]
[388447141,1759172479889,-611.79429863,0.00023031,2]
[388447142,1759172479920,-1971.67,0.00023031,2]
[388447143,1759172480172,-480.0,0.00023031,2]
[388447144,1759172480305,-491.81,0.00023031,2]
[388447145,1759172480339,-2421.27140274,0.00023032,2]
[388447146,1759172480356,-10000.01,0.00023032,2]
[388447147,1759172480385,-491.81,0.00023032,2]
[388447148,1759172480409,-9016.39,0.00023032,2]
[388447149,1759172480428,-10000.01,0.00023032,2]
[388447150,1759172480572,-10000.01,0.00023032,2]
[388447151,1759172480720,-10000.01,0.00023032,2]
[388447152,1759172480846,-10000.01,0.00023032,2]
[388447153,1759172490036,-480.0,0.00022988,2]
[388447154,1759172492395,1428.4,0.00022988,2]
[388447155,1759172505047,1316.74,0.00022988,2]
[388447156,1759172513528,2073.65,0.00022988,2]
[388447157,1759172513676,639.89,0.00022988,2]
[388447158,1759172523970,498.44,0.00022988,2]
[388447159,1759172532876,480.0,0.00022988,2]
[388447160,1759172540467,480.0,0.00022988,2]
[388447161,1759172546337,343.592999,0.00022044,2]
[388447162,1759172555095,1779.297001,0.00022988,2]
[388447163,1759172555117,7050.702999,0.00022988,2]
[388447164,1759172564528,596.1,0.00022988,2]
[388447165,1759172570141,2112.0,0.00022988,2]
[388447167,1759172586675,241.207001,0.00022988,2]
[388447168,1759172586697,650.182999,0.00022988,2]
[388447169,1759172587985,3153.07,0.00022988,2]
[388447170,1759172604148,2025.83,0.00022988,2]
[388447171,1759172617679,1663.53,0.00022988,2]
[388447172,1759172619021,1808.68081296,0.00022932,2]
[388447173,1759172630047,480.0,0.00022988,2]
[388447174,1759172631127,218.71618804,0.00022988,2]
[388447175,1759172631148,753.47381196,0.00022988,2]
[388447176,1759172635645,541.52,0.00022988,2]
[388447177,1759172641069,480.0,0.00022988,2]
[388447178,1759172643899,480.0,0.00022988,2]
[388447179,1759172646967,1200.2,0.00022988,2]
[388447180,1759172651109,480.0,0.00022988,2]
[388447181,1759172653804,689.87940945,0.00022931,2]
[388447182,1759172655353,-1200.0,0.0002302,2]
[388447183,1759172655385,-300.0,0.0002302,2]
[388447184,1759172655601,-1743.99222064,0.00023021,2]
[388447185,1759172655768,-3487.98444128,0.00023021,2]
[388447186,1759172655916,-3024.04111744,0.00023021,2]
[388447187,1759172656260,-6822.92121987,0.00023031,2]
[388447188,1759172656408,-10000.01,0.00023031,2]
[388447189,1759172656628,-10000.01,0.00023031,2]
[388447190,1759172656683,-10000.01,0.00023031,2]
[388447191,1759172657029,1121.33,0.00022988,2]
[388447192,1759172665240,-157.65,0.00023022,10]
[388447193,1759172665267,-480.0,0.0002303,2]
[388447194,1759172665293,-480.0,0.0002303,2]
[388447195,1759172665392,-6647.06,0.00023031,2]
[388447196,1759172665425,-3470.02121987,0.00023031,2]
[388447197,1759172665450,-3059.96756026,0.00023031,2]
[388447198,1759172665551,-480.0,0.00023031,2]
[388447199,1759172665579,-3220.4,0.00023031,2]
[388447200,1759172665607,-480.0,0.00023031,2]
[388447201,1759172665634,-480.0,0.00023031,2]
[388447202,1759172665662,-199.21,0.00023031,2]
[388447203,1759172665742,-280.79,0.00023031,2]
[388447204,1759172665776,-480.0,0.00023031,2]
[388447205,1759172665804,-538.79,0.00023031,2]
[388447206,1759172665831,-565.91,0.00023031,2]
[388447207,1759172665858,-480.0,0.00023031,2]
[388447208,1759172665884,-480.0,0.00023031,2]
[388447209,1759172665913,-480.0,0.00023031,2]
[388447210,1759172665942,-480.0,0.00023031,2]
[388447211,1759172665970,-1107.54,0.00023031,2]
[388447212,1759172665999,-295.53,0.00023031,2]
[388447213,1759172666119,-184.47,0.00023031,2]
[388447214,1759172666146,-480.0,0.00023031,2]
[388447215,1759172666174,-3521.52,0.00023031,2]
[388447216,1759172666201,-480.0,0.00023031,2]
[388447217,1759172666416,-184.47,0.00023031,2]
[388447218,1759172666429,-668.03,0.00023031,2]
[388447219,1759172685299,-4683.29,0.00022988,2]
[388447220,1759172685341,-633.43,0.00022988,2]
[388447221,1759172685427,-855.31,0.00022988,2]
[388447222,1759172685457,-160.0,0.0002302,2]
[388447223,1759172685487,-572.78,0.0002303,2]
[388447224,1759172685514,-434.87,0.00023031,2]
[388447225,1759172685541,-847.03,0.00023031,2]
[388447226,1759172685568,-480.0,0.00023031,2]
[388447227,1759172685596,-480.0,0.00023031,2]
[388447228,1759172685624,-564.96,0.00023031,2]
[388447229,1759172685652,-483.4339518,0.00023031,2]
[388447230,1759172685777,-480.0,0.00023031,2]
[388447231,1759172685805,-480.0,0.00023031,2]
[388447232,1759172685833,-480.0,0.00023031,2]
[388447233,1759172685861,-565.8,0.00023031,2]
[388447234,1759172685888,-201.94616361,0.00023031,2]
[388447235,1759172685916,-484.26,0.00023031,2]
[388447236,1759172685945,-537.17,0.00023031,2]
[388447237,1759172685972,-480.0,0.00023031,2]
[388447238,1759172685999,-480.0,0.00023031,2]
[388447239,1759172686027,-394.31354082,0.00023031,2]
[388447240,1759172686054,-236.07059114,0.00023031,2]
[388447241,1759172686163,-360.88940886,0.00023031,2]
[388447242,1759172686191,-534.76,0.00023031,2]
[388447243,1759172686218,-480.0,0.00023031,2]
[388447244,1759172686244,-480.0,0.00023031,2]
[388447245,1759172686271,-996.27,0.00023031,2]
[388447246,1759172686301,-480.0,0.00023031,2]
[388447247,1759172686328,-500.0,0.00023031,2]
[388447248,1759172686355,-500.0,0.00023031,2]
[388447249,1759172686383,-500.0,0.00023031,2]
[388447250,1759172686519,-2083.72,0.00022988,2]
[388447251,1759172686726,-500.0,0.00023031,2]
[388447252,1759172686755,-500.0,0.00023031,2]
[388447253,1759172686784,-500.0,0.00023031,2]
[388447254,1759172686812,-500.0,0.00023031,2]
[388447255,1759172686839,-500.0,0.00023031,2]
[388447256,1759172686866,-268.66,0.00023031,2]
[388447257,1759172686984,-480.0,0.00023031,2]
[388447258,1759172687012,-510.66,0.00023031,2]
[388447259,1759172687038,-480.0,0.00023031,2]
[388447260,1759172687067,-1932.29,0.00023031,2]
[388447261,1759172687094,-480.0,0.00023031,2]
[388447262,1759172687122,-480.0,0.00023031,2]
[388447263,1759172687149,-480.0,0.00023031,2]
[388447264,1759172687273,-2448.52,0.00023031,2]
[388447265,1759172687301,-480.0,0.00023031,2]
[388447266,1759172687328,-946.12,0.00023031,2]
[388447267,1759172687355,-832.16,0.00023031,2]
[388447268,1759172687381,-106.41,0.00023031,2]
[388447269,1759172688159,-373.59,0.00023031,2]
[388447270,1759172688169,-275.55268754,0.00023031,2]
[388447271,1759172688183,-204.44731246,0.00023031,2]
[388447272,1759172688192,-480.0,0.00023031,2]
[388447273,1759172688202,-147.71268754,0.00023031,2]
[388447274,1759172688216,-332.28731246,0.00023031,2]
[388447275,1759172688226,-147.71268754,0.00023031,2]
[388447276,1759172695489,-480.0,0.00022988,2]
[388447277,1759172695516,-627.61,0.00022988,2]
[388447278,1759172695544,-788.28,0.00023022,10]
[388447279,1759172695571,-834.26,0.0002303,2]
[388447280,1759172695597,-825.38731246,0.00023031,2]
[388447281,1759172695624,-480.0,0.00023031,2]
[388447282,1759172695652,-593.16,0.00023031,2]
[388447283,1759172695794,-742.61537508,0.00023031,2]
[388447284,1759172695827,-590.98462492,0.00023031,2]
[388447285,1759172695855,-480.1,0.00023031,2]
[388447286,1759172695882,-480.0,0.00023031,2]
[388447287,1759172695908,-937.75,0.00023031,2]
[388447288,1759172695935,-1275.52,0.00023031,2]
[388447289,1759172695965,-480.0,0.00023031,2]
[388447290,1759172695992,-662.53,0.00023031,2]
[388447291,1759172696061,-480.0,0.00023031,2]
[388447292,1759172696091,-945.21,0.00023031,2]
[388447293,1759172696120,-480.0,0.00023031,2]
[388447294,1759172696150,-1037.0,0.00023031,2]
[388447295,1759172696185,-480.0,0.00023031,2]
[388447296,1759172696216,-632.73,0.00023031,2]
[388447297,1759172696246,-709.36,0.00023031,2]
[388447298,1759172696448,-480.0,0.00023031,2]
[388447299,1759172696475,-480.0,0.00023031,2]
[388447300,1759172696505,-480.0,0.00023031,2]
[388447301,1759172696533,-480.0,0.00023031,2]
[388447302,1759172696562,-480.0,0.00023031,2]
[388447303,1759172696591,-480.0,0.00023031,2]
[388447304,1759172696619,-458.11588662,0.00023031,2]
[388447305,1759172696647,-555.69,0.00023031,2]
[388447306,1759172696676,-480.0,0.00023031,2]
[388447307,1759172696704,-480.0,0.00023031,2]
[388447308,1759172696849,-1214.95,0.00023031,2]
[388447309,1759172696876,-480.0,0.00023031,2]
[388447310,1759172696902,-509.83,0.00023031,2]
[388447311,1759172696929,-480.0,0.00023031,2]
[388447312,1759172696955,-169.63260729,0.00023031,2]
[388447313,1759172696982,-1768.73,0.00023031,2]
[388447314,1759172697008,-273.72478542,0.00023031,2]
[388447315,1759172697547,-206.27521458,0.00023031,2]
[388447316,1759172697556,-514.58,0.00023031,2]
[388447317,1759172697565,-8.67897692,0.00023031,2]
[388447318,1759172697579,-471.32102308,0.00023031,2]
[388447319,1759172697590,-8.67897692,0.00023031,2]
[388447320,1759172705518,-1083.29,0.00022988,2]
[388447321,1759172705548,-300.0,0.00023029,2]
[388447322,1759172705577,-488.85,0.0002303,2]
[388447323,1759172705605,-1889.52,0.0002303,2]
[388447324,1759172705632,-300.0,0.0002303,2]
[388447325,1759172705661,-300.0,0.0002303,2]
[388447326,1759172705689,-300.0,0.0002303,2]
[388447327,1759172705717,-196.69,0.0002303,2]
[388447328,1759172705796,-283.31,0.0002303,2]
[388447329,1759172705826,-471.32102308,0.00023031,2]
[388447330,1759172705854,-480.0,0.00023031,2]
[388447331,1759172705883,-480.0,0.00023031,2]
[388447332,1759172705912,-480.0,0.00023031,2]
[388447333,1759172705940,-480.0,0.00023031,2]
[388447334,1759172705971,-660.65,0.00023031,2]
[388447335,1759172705998,-480.0,0.00023031,2]
[388447336,1759172706026,-480.0,0.00023031,2]
[388447337,1759172706054,-480.0,0.00023031,2]
[388447338,1759172706256,-521.76,0.00023031,2]
[388447339,1759172706284,-1879.98,0.00023031,2]
[388447340,1759172706549,1200.0,0.00023029,2]
[388447341,1759172707172,480.0,0.0002303,2]
[388447342,1759172707214,480.0,0.00023031,2]
[388447343,1759172708215,1135.55,0.00023022,3]
[388447344,1759172710818,480.0,0.00023031,2]
[388447345,1759172712157,500.0,0.0002303,2]
[388447346,1759172712186,500.0,0.0002303,2]
[388447347,1759172712215,362.06617763,0.0002303,2]
[388447348,1759172712244,58.91382237,0.0002303,2]
[388447349,1759172712268,487.42265369,0.0002303,2]
[388447350,1759172712297,500.0,0.0002303,2]
[388447351,1759172712324,2103.42,0.00022988,2]
[388447352,1759172712358,500.0,0.0002303,2]
[388447353,1759172712386,500.0,0.0002303,2]
[388447354,1759172712415,500.0,0.0002303,2]
[388447355,1759172712445,500.0,0.0002303,2]
[388447356,1759172712489,500.0,0.0002303,2]
[388447357,1759172712521,500.0,0.0002303,2]
[388447358,1759172712553,500.0,0.0002303,2]
[388447359,1759172712581,500.0,0.0002303,2]
[388447360,1759172712609,500.0,0.0002303,2]
[388447361,1759172712636,500.0,0.0002303,2]
[388447362,1759172712676,500.0,0.0002303,2]
[388447363,1759172712706,500.0,0.0002303,2]
[388447364,1759172712735,500.0,0.0002303,2]
[388447365,1759172712766,409.16734631,0.0002303,2]
[388447366,1759172712790,90.83265369,0.0002303,2]
[388447367,1759172712819,500.0,0.0002303,2]
[388447368,1759172712853,500.0,0.0002303,2]
[388447369,1759172712881,500.0,0.0002303,2]
[388447370,1759172712910,500.0,0.0002303,2]
[388447371,1759172712940,500.0,0.0002303,2]
[388447372,1759172712975,500.0,0.0002303,2]
[388447373,1759172713004,522.17864679,0.0002303,2]
[388447374,1759172713033,500.0,0.0002303,2]
[388447375,1759172713069,500.0,0.0002303,2]
[388447376,1759172713103,500.0,0.0002303,2]
[388447377,1759172713133,500.0,0.0002303,2]
[388447378,1759172713166,500.0,0.0002303,2]
[388447379,1759172713200,500.0,0.0002303,2]
[388447380,1759172713228,500.0,0.0002303,2]
[388447381,1759172713255,500.0,0.0002303,2]
[388447382,1759172713292,500.0,0.0002303,2]
[388447383,1759172713321,500.0,0.0002303,2]
[388447384,1759172713355,500.0,0.0002303,2]
[388447385,1759172714017,489.03,0.00023031,2]
[388447386,1759172715290,397.96869952,0.00023031,2]
[388447387,1759172715314,82.03130048,0.00023031,2]
[388447388,1759172715981,557.98,0.00023031,2]
[388447389,1759172717972,481.60832137,0.00023031,2]
[388447390,1759172718455,480.0,0.00023031,2]
[388447391,1759172719197,567.78,0.00023022,3]
[388447392,1759172719334,613.23,0.00023031,2]
[388447393,1759172720364,480.0,0.0002303,2]
[388447394,1759172721194,480.0,0.0002303,2]
[388447395,1759172721517,151.0,0.00023032,2]
[388447396,1759172721627,4604.4,0.00022988,2]
[388447397,1759172724109,1501.98037815,0.0002303,2]
[388447398,1759172724133,1584.22962185,0.0002303,2]
[388447399,1759172724932,557.31,0.00022988,2]
[388447400,1759172725364,729.91,0.00023031,2]
[388447401,1759172727742,480.0,0.00023031,2]
[388447402,1759172728272,6648.56037815,0.00022108,2]
[388447403,1759172738007,-335.54356992,0.00022108,2]
[388447404,1759172746402,-156.38364652,0.00022108,2]
[388447405,1759172762245,-376.38122859,0.00022108,2]
[388447406,1759172777118,-300.0,0.00022107,2]
[388447407,1759172777139,-284.45643008,0.00022108,2]
[388447408,1759172785503,-5613.01130048,0.00022108,2]
[388447409,1759172785623,-4188.76919664,0.00022108,2]
[388447410,1759172785646,-1622.47160672,0.00022108,2]
[388447411,1759172785736,-171.81818016,0.00022108,2]
[388447412,1759172785764,-4152.36178678,0.00022932,2]
[388447413,1759172785801,-1351.65006612,0.00022932,2]
[388447414,1759172785878,-874.26,0.00022988,2]
[388447415,1759172785905,-2348.74,0.00022988,2]
[388447416,1759172785933,-651.39,0.00022988,2]
[388447417,1759172786069,-2251.23,0.00022988,2]
[388447418,1759172786116,-3161.08,0.00022988,2]
[388447419,1759172786143,-288.0,0.00023,7]
[388447420,1759172786169,-283.89,0.00023022,3]
[388447421,1759172786198,-851.68,0.00023022,3]
[388447422,1759172786227,-350.71,0.0002303,2]
[388447423,1759172786304,-129.29,0.0002303,2]
[388447424,1759172786332,-554.47404086,0.0002303,2]
[388447425,1759172786361,-480.0,0.0002303,2]
[388447426,1759172786389,-480.0,0.0002303,2]
[388447427,1759172786419,-3337.69191828,0.0002303,2]
[388447428,1759172786510,-37.09808172,0.0002303,2]
[388447429,1759172786537,-1233.73,0.0002303,2]